[Event "FIDE World Cadets U8 2022"]
[Site "Batumi"]
[Date "2022.09.16"]
[Round "1"]
[White "Llari, Marc"]
[Black "Aarush Bathula"]
[Result "1-0"]
[ECO "C77"]
[WhiteElo "1800"]
[BlackElo "1118"]
[Annotator "NA COMBH"]
[PlyCount "79"]
[EventDate "2022.09.16"]
[EventType "swiss"]
[EventCountry "GEO"]
[SourceTitle "playchess.com"]
[Source "ChessBase"]
[SourceQuality "1"]
[TimeControl "5400+30"]

1. e4 {[%emt 0:01:00]} e5 {[%emt 0:01:00]} 2. Nf3 {[%emt 0:00:30]} Nc6 {[%emt 0:00:30]} 3. Bb5 {[%emt 0:00:00]} Nf6 {[%emt 0:00:30]} 4. d3 {[%emt 0:00:00]} d6 {[%emt 0:00:30]} 5. c3 {[%emt 0:00:30]} Bd7 {[%emt 0:00:30]} 6. Nbd2 {[%emt 0:00:30]} Be7 {[%emt 0:03:30]} 7. Nf1 {[%emt 0:00:30]} a6 {[%emt 0:03:30]} 8. Ba4 {[%emt 0:00:30]} h6 {[%emt 0:01:30]} 9. Ng3 {[%emt 0:01:30]} O-O {[%emt 0:09:30]} 10. O-O {[%emt 0:02:30]} Bg4 {[%emt 0:02:30]} 11. h3 {[%emt 0:01:30]} Bd7 {[%emt 0:02:30]} 12. Be3 {[%emt 0:01:30]} Re8 {[%emt 0:01:30]} 13. Qd2 {[%emt 0:04:30]} Nh7 {[%emt 0:08:30]} 14. Rad1 {[%emt 0:04:30]} Nf8 {[%emt 0:08:30]} 15. Bc2 {[%emt 0:05:30]} Ng6 {[%emt 0:06:30]} 16. Rfe1 {[%emt 0:07:30]} Bf6 {[%emt 0:01:30]} 17. Nh5 {[%emt 0:06:30]} Be7 {[%emt 0:02:30]} 18. d4 {[%emt 0:02:30]} Bf8 {[%emt 0:20:30]} 19. Ng3 {[%emt 0:10:30]} b6 {[%emt 0:09:22]} 20. a3 {[%emt 0:08:30]} Na5 {[%emt 0:02:11]} 21. Qc1 {[%emt 0:08:30]} Nc4 {[%emt 0:04:04]} 22. Bb3 {[%emt 0:00:30]} Nxe3 {[%emt 0:06:02]} 23. fxe3 {[%emt 0:02:30]} Be6 {[%emt 0:01:21]} 24. Bxe6 {[%emt 0:00:30]} Rxe6 {[%emt 0:00:39]} 25. d5 {[%emt 0:00:00]} Re8 {[%emt 0:01:21]} 26. Nf5 {[%emt 0:01:00]} Ne7 {[%emt 0:01:24]} 27. Qc2 {[%emt 0:01:30]} Nxf5 {[%emt 0:01:20]} 28. exf5 {[%emt 0:00:00]} Be7 {[%emt 0:00:29]} 29. Qe4 {[%emt 0:01:00]} Bf6 {[%emt 0:00:29]} 30. Rf1 {[%emt 0:00:30]} Kh8 {[%emt 0:00:30]} 31. Rd2 {[%emt 0:01:30]} Qe7 {[%emt 0:00:35]} 32. Rdf2 {[%emt 0:00:30]} Rg8 {[%emt 0:00:28]} 33. Nh2 {[%emt 0:01:30]} Rad8 {[%emt 0:00:32]} 34. Ng4 {[%emt 0:01:30]} Rde8 {[%emt 0:00:39]} 35. g3 {[%emt 0:00:30]} Rd8 {[%emt 0:00:29]} 36. Kg2 {[%emt 0:01:30]} Rde8 {[%emt 0:00:18]} 37. Nh2 {[%emt 0:00:30]} Rd8 {[%emt 0:00:10]} 38. Qg4 {[%emt 0:01:30]} e4 {[%emt 0:00:34]} 39. Qh5 {[%emt 0:01:30]} Bg5 {[%emt 0:00:57]} 40. f6 {[%emt 0:00:30]} 1-0

[Event "FIDE World Cadets U8 2022"]
[Site "Batumi"]
[Date "2022.09.16"]
[Round "1"]
[White "Annapureddy, Rheyansh Reddy"]
[Black "Koyunoglu, Omer Alp"]
[Result "1-0"]
[ECO "D00"]
[WhiteElo "1698"]
[BlackElo "1105"]
[Annotator "NA COMBH"]
[PlyCount "75"]
[EventDate "2022.09.16"]
[EventType "swiss"]
[EventCountry "GEO"]
[SourceTitle "playchess.com"]
[Source "ChessBase"]
[SourceQuality "1"]
[TimeControl "5400+30"]

1. d4 {[%emt 0:01:00]} d5 {[%emt 0:01:00]} 2. Bf4 {[%emt 0:00:30]} Nf6 {[%emt 0:00:30]} 3. e3 {[%emt 0:00:30]} Bf5 {[%emt 0:00:30]} 4. f3 {[%emt 0:00:00]} c5 {[%emt 0:00:30]} 5. g4 {[%emt 0:00:00]} Bd7 {[%emt 0:00:30]} 6. Nc3 {[%emt 0:00:30]} e6 {[%emt 0:02:30]} 7. Qd2 {[%emt 0:00:30]} a6 {[%emt 0:04:30]} 8. Bg2 {[%emt 0:02:30]} Nc6 {[%emt 0:03:30]} 9. Nge2 {[%emt 0:00:00]} b5 {[%emt 0:05:30]} 10. Ng3 {[%emt 0:01:00]} Na5 {[%emt 0:07:30]} 11. b3 {[%emt 0:00:30]} b4 {[%emt 0:01:30]} 12. Nce2 {[%emt 0:02:30]} c4 {[%emt 0:02:30]} 13. g5 {[%emt 0:01:30]} Ng8 {[%emt 0:05:30]} 14. e4 {[%emt 0:00:00]} c3 {[%emt 0:04:30]} 15. Qe3 {[%emt 0:01:00]} Ne7 {[%emt 0:03:30]} 16. h4 {[%emt 0:01:30]} Nac6 {[%emt 0:01:30]} 17. Bd6 {[%emt 0:01:30]} a5 {[%emt 0:05:30]} 18. Nf4 {[%emt 0:02:30]} dxe4 {[%emt 0:06:30]} 19. fxe4 {[%emt 0:01:30]} Bc8 {[%emt 0:10:30]} 20. Bc5 {[%emt 0:00:00]} Ba6 {[%emt 0:07:30]} 21. Rd1 {[%emt 0:01:00]} Qc7 {[%emt 0:03:30]} 22. d5 {[%emt 0:00:30]} e5 {[%emt 0:06:13]} 23. Nfe2 {[%emt 0:02:30]} Nd4 {[%emt 0:02:10]} 24. Bxd4 {[%emt 0:00:30]} exd4 {[%emt 0:01:42]} 25. Nxd4 {[%emt 0:00:30]} O-O-O {[%emt 0:01:32]} 26. Nde2 {[%emt 0:01:30]} Ng6 {[%emt 0:01:34]} 27. Nf5 {[%emt 0:03:30]} Bxe2 {[%emt 0:00:54]} 28. Qxe2 {[%emt 0:00:30]} Nf4 {[%emt 0:01:05]} 29. Qa6+ {[%emt 0:00:30]} Kb8 {[%emt 0:00:47]} 30. O-O {[%emt 0:02:30]} Bc5+ {[%emt 0:00:57]} 31. Kh1 {[%emt 0:02:30]} Nxg2 {[%emt 0:01:58]} 32. Kxg2 {[%emt 0:00:30]} g6 {[%emt 0:02:09]} 33. Qb5+ {[%emt 0:00:30]} Ka7 {[%emt 0:00:19]} 34. d6 {[%emt 0:00:30]} Bxd6 {[%emt 0:01:50]} 35. Nxd6 {[%emt 0:00:00]} Rxd6 {[%emt 0:00:23]} 36. Rxd6 {[%emt 0:00:00]} Qxd6 {[%emt 0:00:06]} 37. Rxf7+ {[%emt 0:00:30]} Ka8 {[%emt 0:01:02]} 38. Qb7# {[%emt 0:00:00]} 1-0

[Event "FIDE World Cadets U8 2022"]
[Site "Batumi"]
[Date "2022.09.16"]
[Round "1"]
[White "Pasula, Milos"]
[Black "Mammadov, Jamal"]
[Result "0-1"]
[ECO "E52"]
[WhiteElo "1672"]
[BlackElo "1096"]
[Annotator "NA COMBH"]
[PlyCount "130"]
[EventDate "2022.09.16"]
[EventType "swiss"]
[EventCountry "GEO"]
[SourceTitle "playchess.com"]
[Source "ChessBase"]
[SourceQuality "1"]
[TimeControl "5400+30"]

1. d4 {[%emt 0:01:00]} d5 {[%emt 0:01:00]} 2. c4 {[%emt 0:00:30]} e6 {[%emt 0:00:30]} 3. Nc3 {[%emt 0:00:30]} Nf6 {[%emt 0:00:00]} 4. Nf3 {[%emt 0:00:30]} Bb4 {[%emt 0:00:00]} 5. e3 {[%emt 0:02:30]} O-O {[%emt 0:02:30]} 6. a3 {[%emt 0:02:30]} Bxc3+ {[%emt 0:01:30]} 7. bxc3 {[%emt 0:00:30]} b6 {[%emt 0:04:30]} 8. Bd3 {[%emt 0:03:30]} Bb7 {[%emt 0:02:30]} 9. O-O {[%emt 0:02:30]} Nbd7 {[%emt 0:01:30]} 10. Qc2 {[%emt 0:06:30]} dxc4 {[%emt 0:03:30]} 11. Bxc4 {[%emt 0:00:30]} Bxf3 {[%emt 0:00:00]} 12. gxf3 {[%emt 0:00:30]} c5 {[%emt 0:00:00]} 13. e4 {[%emt 0:12:30]} Qc7 {[%emt 0:04:30]} 14. Be3 {[%emt 0:15:30]} Kh8 {[%emt 0:11:30]} 15. Rac1 {[%emt 0:11:30]} Ng8 {[%emt 0:01:30]} 16. Ba2 {[%emt 0:06:30]} Rae8 {[%emt 0:01:30]} 17. Bb1 {[%emt 0:01:30]} f5 {[%emt 0:02:30]} 18. Qd2 {[%emt 0:04:30]} f4 {[%emt 0:01:30]} 19. e5 {[%emt 0:01:30]} fxe3 {[%emt 0:00:30]} 20. Qd3 {[%emt 0:00:00]} g6 {[%emt 0:00:30]} 21. fxe3 {[%emt 0:00:00]} Ne7 {[%emt 0:00:30]} 22. e4 {[%emt 0:00:30]} Rd8 {[%emt 0:02:30]} 23. Ba2 {[%emt 0:01:30]} Nxe5 {[%emt 0:01:30]} 24. Qe3 {[%emt 0:01:30]} Nd7 {[%emt 0:04:30]} 25. Bxe6 {[%emt 0:00:30]} Qd6 {[%emt 0:00:30]} 26. d5 {[%emt 0:00:30]} Qf4 {[%emt 0:01:30]} 27. Qxf4 {[%emt 0:01:30]} Rxf4 {[%emt 0:00:00]} 28. Kg2 {[%emt 0:00:30]} Ne5 {[%emt 0:02:00]} 29. Rcd1 {[%emt 0:01:30]} Rd6 {[%emt 0:00:30]} 30. Kg3 {[%emt 0:00:30]} g5 {[%emt 0:00:30]} 31. Rf2 {[%emt 0:01:30]} N7g6 {[%emt 0:01:30]} 32. a4 {[%emt 0:01:30]} c4 {[%emt 0:00:30]} 33. Ra1 {[%emt 0:01:45]} Nd3 {[%emt 0:00:30]} 34. Rff1 {[%emt 0:00:47]} Nge5 {[%emt 0:00:30]} 35. h3 {[%emt 0:03:51]} Kg7 {[%emt 0:01:30]} 36. a5 {[%emt 0:01:48]} b5 {[%emt 0:01:30]} 37. a6 {[%emt 0:02:08]} Kf8 {[%emt 0:01:30]} 38. Ra2 {[%emt 0:04:54]} Nc5 {[%emt 0:01:30]} 39. Bg4 {[%emt 0:00:48]} Nxg4 {[%emt 0:00:30]} 40. hxg4 {[%emt 0:00:16]} Rxa6 {[%emt 0:00:30]} 41. Rxa6 {[%emt 0:00:08]} Nxa6 {[%emt 0:00:30]} 42. Ra1 {[%emt 0:00:06]} Rf6 {[%emt 0:00:30]} 43. e5 {[%emt 0:00:55]} Rb6 {[%emt 0:00:30]} 44. Kf2 {[%emt 0:00:00]} Nc5 {[%emt 0:00:00]} 45. Rxa7 {[%emt 0:00:00]} Nd3+ {[%emt 0:01:00]} 46. Ke3 {[%emt 0:00:03]} Nxe5 {[%emt 0:00:30]} 47. Rxh7 {[%emt 0:00:48]} Rf6 {[%emt 0:00:00]} 48. Rh3 {[%emt 0:00:21]} Ke7 {[%emt 0:00:00]} 49. Ke4 {[%emt 0:00:33]} Kd6 {[%emt 0:00:30]} 50. Rh5 {[%emt 0:00:29]} Rf4+ {[%emt 0:01:30]} 51. Ke3 {[%emt 0:00:16]} Rxf3+ {[%emt 0:00:00]} 52. Kd2 {[%emt 0:00:09]} Rg3 {[%emt 0:00:00]} 53. Rh8 {[%emt 0:01:03]} Kxd5 {[%emt 0:00:30]} 54. Rd8+ {[%emt 0:00:44]} Ke4 {[%emt 0:00:30]} 55. Rd4+ {[%emt 0:00:17]} Kf3 {[%emt 0:00:30]} 56. Rd5 {[%emt 0:00:23]} Nxg4 {[%emt 0:00:30]} 57. Rxg5 {[%emt 0:00:14]} Rg2+ {[%emt 0:00:30]} 58. Kc1 {[%emt 0:00:22]} Ke3 {[%emt 0:00:30]} 59. Rxb5 {[%emt 0:00:10]} Kd3 {[%emt 0:00:30]} 60. Ra5 {[%emt 0:02:41]} Kxc3 {[%emt 0:00:30]} 61. Ra3+ {[%emt 0:00:40]} Kd4 {[%emt 0:00:00]} 62. Ra4 {[%emt 0:01:05]} Nf6 {[%emt 0:01:00]} 63. Rb4 {[%emt 0:01:09]} Kc3 {[%emt 0:00:00]} 64. Rb3+ {[%emt 0:00:49]} cxb3 {[%emt 0:00:00]} 65. Kd1 {[%emt 0:00:09]} b2 {[%emt 0:00:30]} 0-1

[Event "FIDE World Cadets U8 2022"]
[Site "Batumi"]
[Date "2022.09.16"]
[Round "1"]
[White "Ling, Chenxuan"]
[Black "Panasiuk, Stanislaw"]
[Result "1-0"]
[ECO "E70"]
[WhiteElo "1601"]
[BlackElo "1074"]
[Annotator "NA COMBH"]
[PlyCount "75"]
[EventDate "2022.09.16"]
[EventType "swiss"]
[EventCountry "GEO"]
[SourceTitle "playchess.com"]
[Source "ChessBase"]
[SourceQuality "1"]
[TimeControl "5400+30"]

1. d4 {[%emt 0:01:00]} Nf6 {[%emt 0:01:00]} 2. c4 {[%emt 0:00:30]} d6 {[%emt 0:00:30]} 3. Nc3 {[%emt 0:00:30]} g6 {[%emt 0:00:30]} 4. e4 {[%emt 0:00:00]} Bg7 {[%emt 0:00:30]} 5. Nge2 {[%emt 0:00:00]} O-O {[%emt 0:00:30]} 6. Ng3 {[%emt 0:00:00]} Bd7 {[%emt 0:00:30]} 7. h4 {[%emt 0:00:00]} Nc6 {[%emt 0:00:00]} 8. Be2 {[%emt 0:02:30]} e5 {[%emt 0:02:00]} 9. d5 {[%emt 0:00:30]} Ne7 {[%emt 0:01:30]} 10. h5 {[%emt 0:00:30]} Qc8 {[%emt 0:00:30]} 11. h6 {[%emt 0:00:30]} Bh8 {[%emt 0:01:30]} 12. Bg5 {[%emt 0:00:30]} Re8 {[%emt 0:00:30]} 13. Bf3 {[%emt 0:01:30]} Bg4 {[%emt 0:01:30]} 14. Bxf6 {[%emt 0:00:30]} Bxf6 {[%emt 0:02:30]} 15. Bxg4 {[%emt 0:00:30]} Qd8 {[%emt 0:00:30]} 16. Qf3 {[%emt 0:00:30]} Bh8 {[%emt 0:00:30]} 17. O-O-O {[%emt 0:00:00]} Nc8 {[%emt 0:01:30]} 18. Bxc8 {[%emt 0:00:00]} Rxc8 {[%emt 0:00:30]} 19. Kb1 {[%emt 0:00:30]} Rb8 {[%emt 0:01:30]} 20. Qe3 {[%emt 0:00:30]} a6 {[%emt 0:00:30]} 21. c5 {[%emt 0:00:30]} b6 {[%emt 0:00:30]} 22. cxd6 {[%emt 0:00:30]} Qxd6 {[%emt 0:00:30]} 23. Qd3 {[%emt 0:00:00]} b5 {[%emt 0:01:30]} 24. Rc1 {[%emt 0:02:00]} b4 {[%emt 0:02:30]} 25. Nce2 {[%emt 0:00:00]} a5 {[%emt 0:00:00]} 26. Rc6 {[%emt 0:00:00]} Qd7 {[%emt 0:00:00]} 27. Rhc1 {[%emt 0:00:30]} Rbc8 {[%emt 0:01:30]} 28. Qc4 {[%emt 0:01:30]} Re7 {[%emt 0:00:30]} 29. d6 {[%emt 0:01:30]} Ree8 {[%emt 0:01:30]} 30. Rxc7 {[%emt 0:00:00]} Qc6 {[%emt 0:00:30]} 31. Qxc6 {[%emt 0:00:00]} Rcd8 {[%emt 0:00:30]} 32. d7 {[%emt 0:00:30]} Re7 {[%emt 0:00:30]} 33. Rc8 {[%emt 0:00:30]} f6 {[%emt 0:00:30]} 34. Rxd8+ {[%emt 0:00:00]} Kf7 {[%emt 0:00:30]} 35. Qd5+ {[%emt 0:00:00]} Re6 {[%emt 0:00:30]} 36. Rf8+ {[%emt 0:00:30]} Kxf8 {[%emt 0:00:30]} 37. Qxe6 {[%emt 0:00:00]} Bg7 {[%emt 0:00:30]} 38. d8=Q# 1-0

[Event "FIDE World Cadets U8 2022"]
[Site "Batumi"]
[Date "2022.09.16"]
[Round "1"]
[White "Ghoreishiamiri, SeyedKian"]
[Black "Benito Arotoma, Antonio Leonel"]
[Result "1-0"]
[ECO "C41"]
[WhiteElo "1583"]
[BlackElo "1044"]
[Annotator "NA COMBH"]
[PlyCount "157"]
[EventDate "2022.09.16"]
[EventType "swiss"]
[EventCountry "GEO"]
[SourceTitle "playchess.com"]
[Source "ChessBase"]
[SourceQuality "1"]
[TimeControl "5400+30"]

1. e4 {[%emt 0:01:00]} e5 {[%emt 0:01:00]} 2. Nf3 {[%emt 0:00:30]} d6 {[%emt 0:00:30]} 3. d4 {[%emt 0:00:30]} Bg4 {[%emt 0:00:00]} 4. dxe5 {[%emt 0:00:30]} Bxf3 {[%emt 0:00:00]} 5. Qxf3 {[%emt 0:00:00]} dxe5 {[%emt 0:00:30]} 6. Bc4 {[%emt 0:00:00]} Nf6 {[%emt 0:00:30]} 7. Be3 {[%emt 0:00:30]} Bb4+ {[%emt 0:00:30]} 8. c3 {[%emt 0:00:30]} Bd6 {[%emt 0:00:30]} 9. O-O {[%emt 0:00:30]} O-O {[%emt 0:00:30]} 10. Rd1 {[%emt 0:00:30]} Qe7 {[%emt 0:00:30]} 11. Nd2 {[%emt 0:00:30]} Nbd7 {[%emt 0:00:30]} 12. Nf1 {[%emt 0:00:30]} Bc5 {[%emt 0:00:00]} 13. b4 {[%emt 0:00:30]} Bd6 {[%emt 0:00:00]} 14. Ng3 {[%emt 0:00:30]} Kh8 {[%emt 0:00:00]} 15. Nf5 {[%emt 0:00:30]} Qd8 {[%emt 0:00:00]} 16. Nxd6 {[%emt 0:01:30]} cxd6 {[%emt 0:00:00]} 17. Rd3 {[%emt 0:00:30]} Qc7 {[%emt 0:00:00]} 18. Bb3 {[%emt 0:00:30]} Nb6 {[%emt 0:00:30]} 19. Rad1 {[%emt 0:03:30]} Rad8 {[%emt 0:00:30]} 20. Bg5 {[%emt 0:00:30]} Qe7 {[%emt 0:00:30]} 21. Bxf6 {[%emt 0:00:30]} gxf6 {[%emt 0:00:30]} 22. Qf5 {[%emt 0:00:30]} Rg8 {[%emt 0:00:30]} 23. Rh3 {[%emt 0:00:30]} Rg6 {[%emt 0:00:30]} 24. Qh5 {[%emt 0:00:30]} h6 {[%emt 0:00:30]} 25. Rdd3 {[%emt 0:00:30]} Rdg8 {[%emt 0:03:30]} 26. Rdg3 {[%emt 0:00:30]} Kh7 {[%emt 0:00:30]} 27. Bd1 {[%emt 0:00:30]} Qf8 {[%emt 0:00:30]} 28. Bg4 {[%emt 0:01:30]} Kh8 {[%emt 0:05:30]} 29. Bf5 {[%emt 0:00:30]} Rxg3 {[%emt 0:01:30]} 30. Qxh6+ {[%emt 0:00:30]} Qxh6 {[%emt 0:00:30]} 31. Rxh6+ {[%emt 0:00:30]} Kg7 {[%emt 0:00:30]} 32. Rh7+ {[%emt 0:00:00]} Kf8 {[%emt 0:00:30]} 33. fxg3 {[%emt 0:00:00]} Ke7 {[%emt 0:00:30]} 34. g4 {[%emt 0:00:30]} Na4 {[%emt 0:00:30]} 35. Rh3 {[%emt 0:00:00]} b5 {[%emt 0:00:00]} 36. Rd3 {[%emt 0:00:00]} Nb6 {[%emt 0:01:00]} 37. h4 {[%emt 0:00:30]} Nc4 {[%emt 0:00:30]} 38. Kf2 {[%emt 0:00:30]} Nb2 {[%emt 0:00:30]} 39. Rd5 {[%emt 0:00:30]} a6 {[%emt 0:00:30]} 40. h5 {[%emt 0:00:30]} Na4 {[%emt 0:00:00]} 41. Rd3 {[%emt 0:00:30]} Nb2 {[%emt 0:01:00]} 42. Rh3 {[%emt 0:00:00]} Rh8 {[%emt 0:00:00]} 43. h6 {[%emt 0:00:00]} Nc4 {[%emt 0:01:00]} 44. h7 {[%emt 0:00:30]} Nb6 {[%emt 0:00:30]} 45. Kg3 {[%emt 0:00:30]} Kf8 {[%emt 0:00:30]} 46. Kh4 {[%emt 0:00:30]} Kg7 {[%emt 0:00:30]} 47. Rg3 {[%emt 0:00:30]} Nc8 {[%emt 0:01:30]} 48. Rd3 {[%emt 0:00:30]} Rd8 {[%emt 0:01:30]} 49. Bxc8 {[%emt 0:01:30]} Rxc8 {[%emt 0:00:30]} 50. Rxd6 {[%emt 0:00:00]} Rxc3 {[%emt 0:00:00]} 51. Rxa6 {[%emt 0:00:00]} Rc1 {[%emt 0:01:00]} 52. Rxf6 {[%emt 0:01:30]} Rh1+ {[%emt 0:00:00]} 53. Kg5 {[%emt 0:00:00]} Rxh7 {[%emt 0:00:00]} 54. Rb6 {[%emt 0:00:00]} Rh8 {[%emt 0:00:30]} 55. Rxb5 {[%emt 0:01:30]} Ra8 {[%emt 0:01:30]} 56. Ra5 {[%emt 0:00:30]} Rb8 {[%emt 0:00:00]} 57. b5 {[%emt 0:00:00]} Rb6 {[%emt 0:01:00]} 58. Kf5 {[%emt 0:00:00]} f6 {[%emt 0:01:30]} 59. Ra7+ {[%emt 0:00:30]} Kh6 {[%emt 0:00:00]} 60. a4 {[%emt 0:00:30]} Rd6 {[%emt 0:00:00]} 61. Ra6 {[%emt 0:00:00]} Rd2 {[%emt 0:00:30]} 62. Rxf6+ {[%emt 0:00:00]} Kg7 {[%emt 0:00:30]} 63. Kxe5 {[%emt 0:00:30]} Rxg2 {[%emt 0:00:30]} 64. Rf4 {[%emt 0:00:30]} Ra2 {[%emt 0:00:30]} 65. Rf1 {[%emt 0:00:00]} Rxa4 {[%emt 0:00:30]} 66. Rb1 {[%emt 0:00:00]} Ra5 {[%emt 0:00:30]} 67. Kd6 {[%emt 0:00:30]} Ra4 {[%emt 0:01:30]} 68. e5 {[%emt 0:00:00]} Rxg4 {[%emt 0:00:30]} 69. b6 {[%emt 0:00:00]} Rg6+ {[%emt 0:00:30]} 70. e6 {[%emt 0:00:00]} Kf6 {[%emt 0:00:30]} 71. b7 {[%emt 0:00:00]} Kf5 {[%emt 0:00:30]} 72. Rf1+ {[%emt 0:00:30]} Ke4 {[%emt 0:00:30]} 73. b8=Q {[%emt 0:00:00]} Rg5 {[%emt 0:00:30]} 74. Qb4+ {[%emt 0:00:00]} Ke3 {[%emt 0:00:30]} 75. Qf4+ {[%emt 0:00:30]} Kd3 {[%emt 0:00:30]} 76. Rf3+ {[%emt 0:00:30]} Kc2 {[%emt 0:00:30]} 77. Qxg5 {[%emt 0:00:30]} Kb2 {[%emt 0:01:30]} 78. Qg2+ {[%emt 0:00:00]} Kc1 {[%emt 0:00:00]} 79. Rf1# 1-0

[Event "FIDE World Cadets U8 2022"]
[Site "Batumi"]
[Date "2022.09.16"]
[Round "1"]
[White "Aryan Mehta"]
[Black "Zheng, Lerui"]
[Result "0-1"]
[ECO "B80"]
[WhiteElo "1399"]
[BlackElo "1640"]
[Annotator "NA COMBH"]
[PlyCount "61"]
[EventDate "2022.09.16"]
[EventType "swiss"]
[EventCountry "GEO"]
[SourceTitle "playchess.com"]
[Source "ChessBase"]
[SourceQuality "1"]
[TimeControl "5400+30"]

1. e4 c5 2. Nf3 d6 3. d4 cxd4 4. Nxd4 Nf6 5. Nc3 a6 6. Bc4 e6 7. Be3 Be7 8. f3 O-O 9. Qd2 e5 10. Nf5 Bxf5 11. exf5 Nc6 12. O-O-O b5 13. Bb3 Na5 14. Nd5 Nxb3+ 15. axb3 Nxd5 16. Qxd5 Bg5 17. Rhe1 Bxe3+ 18. Rxe3 Qg5 19. Qe4 Rad8 20. g3 d5 21. Qxe5 Rde8 22. Qxd5 Qxe3+ 23. Kb1 h6 24. Qc6 Qe2 25. Rd6 Rc8 26. Qb6 Qxc2+ 27. Ka2 Qxf5 28. f4 Rc1 29. b4 Qb1+ 30. Kb3 Qc2+ 31. Ka2 0-1

[Event "FIDE World Cadets U8 2022"]
[Site "Batumi"]
[Date "2022.09.16"]
[Round "1"]
[White "Vedrickas, Vytis"]
[Black "Jakhria, Kushal"]
[Result "0-1"]
[ECO "B33"]
[WhiteElo "1122"]
[BlackElo "1823"]
[Annotator "NA COMBH"]
[PlyCount "58"]
[EventDate "2022.09.16"]
[EventType "swiss"]
[EventCountry "GEO"]
[SourceTitle "playchess.com"]
[Source "ChessBase"]
[SourceQuality "1"]
[TimeControl "5400+30"]

1. e4 {[%emt 0:01:00]} c5 {[%emt 0:01:00]} 2. Nf3 {[%emt 0:00:30]} Nc6 {[%emt 0:00:30]} 3. d4 {[%emt 0:00:30]} cxd4 {[%emt 0:00:30]} 4. Nxd4 {[%emt 0:00:30]} Nf6 {[%emt 0:00:30]} 5. Nc3 {[%emt 0:00:30]} e5 {[%emt 0:00:00]} 6. Ndb5 {[%emt 0:00:00]} d6 {[%emt 0:00:00]} 7. Nd5 {[%emt 0:00:00]} Nxd5 {[%emt 0:00:00]} 8. exd5 {[%emt 0:00:00]} Nb8 {[%emt 0:00:00]} 9. c4 {[%emt 0:00:00]} Be7 {[%emt 0:00:30]} 10. Be2 {[%emt 0:00:30]} O-O {[%emt 0:00:30]} 11. O-O {[%emt 0:00:30]} a6 {[%emt 0:01:30]} 12. Nc3 {[%emt 0:00:30]} f5 {[%emt 0:00:30]} 13. f4 {[%emt 0:00:30]} e4 {[%emt 0:03:30]} 14. Be3 {[%emt 0:00:30]} Bf6 {[%emt 0:12:30]} 15. Rc1 {[%emt 0:00:30]} g5 {[%emt 0:18:30]} 16. Bh5 {[%emt 0:03:30]} g4 {[%emt 0:03:30]} 17. h3 {[%emt 0:01:30]} Bxc3 {[%emt 0:00:30]} 18. Rxc3 {[%emt 0:02:30]} Qh4 {[%emt 0:00:30]} 19. hxg4 {[%emt 0:01:30]} fxg4 {[%emt 0:00:00]} 20. Bxg4 {[%emt 0:00:30]} Bxg4 {[%emt 0:01:00]} 21. Qd2 {[%emt 0:01:30]} Rf6 {[%emt 0:00:30]} 22. b3 {[%emt 0:03:30]} Rh6 {[%emt 0:01:30]} 23. f5 {[%emt 0:01:30]} Qh2+ {[%emt 0:00:30]} 24. Kf2 {[%emt 0:01:30]} Rf6 {[%emt 0:05:30]} 25. Ke1 {[%emt 0:06:30]} Rxf5 {[%emt 0:02:30]} 26. Rxf5 {[%emt 0:02:30]} Bxf5 {[%emt 0:00:30]} 27. Bf4 {[%emt 0:03:30]} Qg1+ {[%emt 0:00:30]} 28. Ke2 {[%emt 0:01:30]} Bg4+ {[%emt 0:00:30]} 29. Rf3 {[%emt 0:00:30]} Qxg2+ {[%emt 0:00:30]} 0-1

[Event "FIDE World Cadets U8 2022"]
[Site "Batumi"]
[Date "2022.09.16"]
[Round "1"]
[White "Khaled AlJamaat"]
[Black "Shogdzhiev, Roman Sav"]
[Result "0-1"]
[ECO "B90"]
[WhiteElo "1109"]
[BlackElo "1715"]
[Annotator "NA COMBH"]
[PlyCount "56"]
[EventDate "2022.09.16"]
[EventType "swiss"]
[EventCountry "GEO"]
[SourceTitle "playchess.com"]
[Source "ChessBase"]
[SourceQuality "1"]
[TimeControl "5400+30"]

1. e4 {[%emt 0:01:00]} c5 {[%emt 0:01:00]} 2. Nf3 {[%emt 0:00:30]} d6 {[%emt 0:00:30]} 3. d4 {[%emt 0:00:30]} cxd4 {[%emt 0:00:30]} 4. Nxd4 {[%emt 0:00:30]} Nf6 {[%emt 0:00:30]} 5. Nc3 {[%emt 0:00:30]} a6 {[%emt 0:00:00]} 6. Be3 {[%emt 0:00:00]} e5 {[%emt 0:00:00]} 7. Nb3 {[%emt 0:00:00]} Be7 {[%emt 0:00:00]} 8. f3 {[%emt 0:00:00]} Be6 {[%emt 0:00:00]} 9. Qd2 {[%emt 0:00:00]} O-O {[%emt 0:00:30]} 10. O-O-O {[%emt 0:00:30]} Nbd7 {[%emt 0:00:30]} 11. g4 {[%emt 0:00:30]} b5 {[%emt 0:00:30]} 12. g5 {[%emt 0:00:30]} Nh5 {[%emt 0:00:30]} 13. Rg1 {[%emt 0:00:30]} Nb6 {[%emt 0:00:00]} 14. Na5 {[%emt 0:00:30]} Qc7 {[%emt 0:00:00]} 15. Kb1 {[%emt 0:00:30]} d5 {[%emt 0:17:30]} 16. Bxb6 {[%emt 0:00:30]} Qxb6 {[%emt 0:00:30]} 17. Nxd5 {[%emt 0:00:30]} Bxd5 {[%emt 0:00:30]} 18. Bh3 {[%emt 0:03:30]} Be6 {[%emt 0:01:30]} 19. Bg4 {[%emt 0:02:30]} Nf4 {[%emt 0:04:30]} 20. Nb3 {[%emt 0:01:30]} Bxb3 {[%emt 0:02:30]} 21. axb3 {[%emt 0:00:30]} Rfd8 {[%emt 0:02:30]} 22. Qe1 {[%emt 0:00:30]} Rxd1+ {[%emt 0:00:30]} 23. Qxd1 {[%emt 0:00:30]} Rd8 {[%emt 0:00:30]} 24. Qe1 {[%emt 0:00:30]} Bxg5 {[%emt 0:00:30]} 25. Bf5 {[%emt 0:00:30]} Bh4 {[%emt 0:03:30]} 26. Qf1 {[%emt 0:00:30]} Qf2 {[%emt 0:02:30]} 27. Qxf2 {[%emt 0:01:30]} Bxf2 {[%emt 0:00:00]} 28. Rf1 {[%emt 0:00:30]} Bc5 {[%emt 0:01:00]} 0-1